fUST/lending_fUST_20241228
["ID","MTS","AMOUNT","RATE_DAILY","PERIOD"]
[346902955,1735353048980,-500.0,0.00012292,2]
[346902956,1735353048989,-500.0,0.00012292,2]
[346902957,1735353048999,-500.0,0.00012292,2]
[346902958,1735353049008,-500.0,0.00012292,2]
[346902959,1735353049017,-500.0,0.00012292,2]
[346902960,1735353049028,-500.0,0.00012292,2]
[346902961,1735353049041,-500.0,0.00012292,2]
[346902962,1735353049051,-500.0,0.00012292,2]
[346902963,1735353049060,-500.0,0.00012292,2]
[346902964,1735353049070,-241.209174,0.00012292,2]
[346902965,1735353049080,-241.209174,0.00012292,2]
[346902966,1735353049090,-405.21066,0.00012292,2]
[346902967,1735353049100,-405.21066,0.00012292,2]
[346902968,1735353049109,-500.0,0.00012353,2]
[346902969,1735353049119,-500.0,0.00012353,2]
[346902970,1735353049129,-500.0,0.00012353,2]
[346902971,1735353049138,-1571.11,0.00012354,2]
[346902972,1735353049148,-623.51,0.00012356,2]
[346902973,1735353049158,-500.0,0.00012565,2]
[346902974,1735353049168,-500.0,0.00012566,2]
[346902975,1735353049178,-500.0,0.00012566,2]
[346902976,1735353049188,-500.0,0.00012566,2]
[346902977,1735353049198,-508.34485541,0.00012566,2]
[346902978,1735353049207,-500.0,0.00012566,2]
[346902979,1735353049217,-500.0,0.00012566,2]
[346902980,1735353049226,-500.0,0.00012566,2]
[346902981,1735353049235,-500.0,0.00012566,2]
[346902982,1735353049245,-534.3,0.00012566,2]
[346902983,1735353049255,-535.56,0.00012566,2]
[346902984,1735353049266,-151.0,0.00012566,2]
[346902985,1735353049276,-151.0,0.00012566,2]
[346902986,1735353049286,-261.790183,0.00012566,2]
[346902987,1735353049296,-500.0,0.00012627,2]
[346902988,1735353049306,-561.9,0.00012627,2]
[346902989,1735353049316,-401.05719359,0.00012627,2]
[346902990,1735353049326,-1571.11,0.00012628,2]
[346902991,1735353049336,-623.51,0.0001263,2]
[346902992,1735353049346,-500.0,0.00012839,2]
[346902993,1735353049355,-500.0,0.0001284,2]
[346902994,1735353049365,-500.0,0.0001284,2]
[346902995,1735353049375,-500.0,0.0001284,2]
[346902996,1735353049385,-500.0,0.0001284,2]
[346902997,1735353049395,-500.0,0.0001284,2]
[346902998,1735353049405,-500.0,0.00012901,2]
[346902999,1735353049415,-1571.11,0.00012902,2]
[346903000,1735353049425,-623.51,0.00012904,2]
[346903001,1735353049434,-500.0,0.00013113,2]
[346903002,1735353049444,-500.0,0.00013114,2]
[346903003,1735353049454,-500.0,0.00013114,2]
[346903004,1735353049464,-500.0,0.00013175,2]
[346903005,1735353049473,-1571.11,0.00013176,2]
[346903006,1735353049483,-623.51,0.00013178,2]
[346903007,1735353049493,-192.0,0.00013271,2]
[346903008,1735353049503,-500.0,0.00013387,2]
[346903009,1735353049513,-500.0,0.00013388,2]
[346903010,1735353049523,-500.0,0.00013388,2]
[346903011,1735353049532,-500.0,0.00013449,2]
[346903012,1735353049542,-1571.11,0.0001345,2]
[346903013,1735353049552,-151.0,0.00013452,2]
[346903014,1735353049562,-292.753386,0.00013452,2]
[346903015,1735353049571,-1249.471502,0.00013452,2]
[346903016,1735353049581,-151.0,0.00013452,2]
[346903017,1735353049590,-1249.471502,0.00013452,2]
[346903018,1735353049600,-623.51,0.00013452,2]
[346903019,1735353049609,-500.0,0.00013661,2]
[346903020,1735353049618,-616.07,0.00013662,2]
[346903021,1735353049627,-151.0,0.00013662,2]
[346903022,1735353049637,-500.0,0.00013698,2]
[346903023,1735353049647,-500.0,0.00013698,2]
[346903024,1735353049656,-500.0,0.00013698,2]
[346903025,1735353049665,-500.0,0.00013698,2]
[346903026,1735353049674,-509.00441255,0.00013698,2]
[346903027,1735353049683,-276.8698815,0.00013699,2]
[346903028,1735353049693,-151.0,0.00013699,2]
[346903029,1735353049702,-151.0,0.00013699,2]
[346903030,1735353049712,-151.0,0.00013699,2]
[346903031,1735353049721,-151.0,0.00013699,2]
[346903032,1735353049730,-151.0,0.00013699,2]
[346903033,1735353049740,-500.0,0.00013699,2]
[346903034,1735353049749,-500.0,0.00013699,2]
[346903035,1735353049759,-467.74978102,0.00013723,2]
[346903036,1735353049768,-1571.11,0.00013724,2]
[346903037,1735353049779,-623.51,0.00013726,2]
[346903038,1735353049788,-500.0,0.00013935,2]
[346903039,1735353049797,-400.0,0.00013973,2]
[346903040,1735353049807,-1571.11,0.00013998,2]
[346903041,1735353049816,-623.51,0.00014,2]
[346903042,1735353049826,-595.351,0.00014106,2]
[346903043,1735353049835,-500.0,0.00014209,2]
[346903044,1735353049844,-1000.0,0.00014247,2]
[346903045,1735353049854,-572.81948024,0.00014247,2]
[346903046,1735353049863,-1571.11,0.00014272,2]
[346903047,1735353049873,-623.51,0.00014274,2]
[346903048,1735353049882,-500.0,0.00014483,2]
[346903049,1735353049892,-1571.11,0.00014546,2]
[346903050,1735353049901,-151.0,0.00014548,2]
[346903051,1735353049910,-623.51,0.00014548,2]
[346903052,1735353049919,-500.0,0.00014757,2]
[346903053,1735353049992,-1571.11,0.0001482,2]
[346903054,1735353050002,-623.51,0.00014822,2]
[346903055,1735353050011,-500.0,0.00015031,2]
[346903056,1735353050022,-1571.11,0.00015094,2]
[346903057,1735353050031,-623.51,0.00015096,2]
[346903058,1735353050044,-502.61899629,0.00015248,2]
[346903059,1735353050054,-500.0,0.00015305,2]
[346903060,1735353050063,-1571.21,0.00015368,2]
[346903061,1735353050073,-623.55420931,0.0001537,2]
[346903062,1735353050083,-500.0,0.00015579,2]
[346903063,1735353050092,-500.0,0.00015853,2]
[346903064,1735353050101,-500.0,0.00015999,2]
[346903065,1735353050113,-500.0,0.00015999,2]
[346903066,1735353050123,-500.0,0.00016127,2]
[346903067,1735353050132,-500.0,0.00016273,2]
[346903068,1735353050141,-500.0,0.00016273,2]
[346903069,1735353050151,-280.66298561,0.00016401,2]
[346903070,1735353050160,-500.0,0.00016438,2]
[346903071,1735353050170,-500.0,0.00016438,2]
[346903072,1735353050180,-500.0,0.00016438,2]
[346903073,1735353050189,-7286.87,0.000165,2]
[346903074,1735353050199,-19379.08,0.000165,2]
[346903075,1735353050209,-20904.79,0.000165,2]
[346903076,1735353050219,-151.0,0.000165,2]
[346903077,1735353050229,-1249.471502,0.000165,2]
[346903078,1735353050238,-151.0,0.000165,2]
[346903079,1735353050249,-1249.47151196,0.000165,2]
[346903080,1735353050258,-151.0,0.000165,2]
[346903081,1735353050268,-241.209174,0.000165,2]
[346903082,1735353050277,-241.209184,0.000165,2]
[346903083,1735353050287,-405.21066,0.000165,2]
[346903084,1735353050297,-405.210661,0.000165,2]
[346903085,1735353050309,-151.0,0.000165,2]
[346903086,1735353050318,-151.0,0.000165,2]
[346903087,1735353050327,-500.0,0.00016547,2]
[346903088,1735353050337,-500.0,0.00016547,2]
[346903089,1735353050347,-500.0,0.00016821,2]
[346903090,1735353050356,-355.75021556,0.00016821,2]
[346903091,1735353050366,-500.0,0.00017095,2]
[346903092,1735353050376,-150.0,0.00017261,2]
[346903093,1735353050386,-394.0,0.00017261,2]
[346903094,1735353050396,-500.0,0.00017369,2]
[346903095,1735353050407,-151.0,0.000176,2]
[346903096,1735353050417,-500.0,0.00017643,2]
[346903097,1735353050427,-500.0,0.00017808,4]
[346903098,1735353050437,-500.0,0.00017917,2]
[346903099,1735353050447,-500.0,0.00018191,2]
[346903100,1735353050458,-500.0,0.00018198,2]
[346903101,1735353050468,-500.0,0.00018198,2]
[346903102,1735353050478,-506.96245541,0.00018198,2]
[346903103,1735353050488,-271.37306724,0.00018198,2]
[346903104,1735353050498,-451.61482799,0.00018198,2]
[346903105,1735353050508,-876.791,0.0001824,2]
[346903106,1735353050518,-151.0,0.00018386,2]
[346903107,1735353050528,-151.0,0.00018386,2]
[346903108,1735353050538,-2353.0,0.00018386,2]
[346903109,1735353050548,-151.0,0.000184,2]
[346903110,1735353050558,-500.0,0.00018465,2]
[346903111,1735353050568,-151.0,0.00018472,2]
[346903112,1735353050578,-151.0,0.00018472,2]
[346903113,1735353050587,-151.0,0.00018472,2]
[346903114,1735353050597,-503.19909759,0.00018472,2]
[346903115,1735353050607,-504.3692772,0.00018472,2]
[346903116,1735353050617,-352.2858095,0.00018493,2]
[346903117,1735353050627,-707.902079,0.00018493,2]
[346903118,1735353050637,-500.0,0.00018739,2]
[346903119,1735353050646,-154.066111,0.00018767,2]
[346903120,1735353050655,-307.2021424,0.00018767,2]
[346903121,1735353050665,-214.2955403,0.00018767,2]
[346903122,1735353050675,-153.4855449,0.00018767,2]
[346903123,1735353050684,-214.2955403,0.00018767,2]
[346903124,1735353050695,-153.4855449,0.00018767,2]
[346903125,1735353050705,-153.0,0.00018767,2]
[346903126,1735353050714,-153.0,0.00018878,2]
[346903127,1735353050723,-153.4855449,0.00018878,2]
[346903128,1735353050733,-214.2955403,0.00018878,2]
[346903129,1735353050743,-745.89057758,0.000189,2]
[346903130,1735353050752,-500.0,0.00019,2]
[346903131,1735353050762,-500.0,0.00019,2]
[346903132,1735353050772,-500.0,0.00019,2]
[346903133,1735353050785,-500.0,0.00019,2]
[346903134,1735353050794,-500.0,0.00019,2]
[346903135,1735353050804,-481.0,0.00019,2]
[346903136,1735353050813,-37142.90968445,0.00019,2]
[346903137,1735353050823,-307.4661352,0.00019007,2]
[346903138,1735353050833,-500.0,0.00019013,2]
[346903139,1735353050843,-155.551198,0.0001902,2]
[346903140,1735353050852,-7286.87,0.000191,2]
[346903141,1735353050862,-19379.08,0.000191,2]
[346903142,1735353050871,-20904.79,0.000191,2]
[346903143,1735353050880,-151.0,0.000191,2]
[346903144,1735353050890,-151.0,0.000191,2]
[346903145,1735353050899,-500.0,0.00019178,6]
[346903146,1735353050910,-222.66467,0.00019178,2]
[346903147,1735353050920,-156771.8249036,0.000192,2]
[346903148,1735353050930,-151.0,0.000192,2]
[346903149,1735353050941,-151.0,0.000192,2]
[346903150,1735353050951,-151.0,0.000192,2]
[346903151,1735353050962,-151.0,0.000192,2]
[346903152,1735353050972,-151.0,0.000192,2]
[346903153,1735353050982,-151.0,0.000192,2]
[346903154,1735353050992,-151.0,0.000192,2]
[346903155,1735353051002,-151.0,0.000192,2]
[346903156,1735353051012,-151.0,0.000192,2]
[346903157,1735353051022,-151.0,0.000192,2]
[346903158,1735353051034,-151.0,0.000192,2]
[346903159,1735353051044,-500.0,0.00019287,2]
[346903160,1735353051053,-307.8273413,0.00019315,2]
[346903161,1735353051063,-5000.0,0.00019352,7]
[346903162,1735353051072,-3955.4481688,0.00019524,2]
[346903163,1735353051083,-500.0,0.00019561,2]
[346903164,1735353051093,-150.21,0.00019589,2]
[346903165,1735353051103,-500.0,0.00019589,2]
[346903166,1735353051113,-150.21,0.00019589,2]
[346903167,1735353051123,-150.21,0.00019589,2]
[346903168,1735353051134,-600.0,0.00019644,2]
[346903169,1735353051144,-4457.38621074,0.0001978,7]
[346903170,1735353051155,-500.0,0.00019835,2]
[346903171,1735353051165,-602.11208081,0.00019849,2]
[346903172,1735353051175,-150.21,0.00019863,2]
[346903173,1735353051185,-500.0,0.00019863,2]
[346903174,1735353051194,-150.21,0.00019863,2]
[346903175,1735353051204,-3631.09424706,0.00019873,2]
[346903176,1735353051214,-8970.3318071,0.000199,2]
[346903177,1735353051223,-160.0,0.00019999,2]
[346903178,1735353051233,-160.0,0.00019999,2]
[346903179,1735353051243,-11780.0,0.0002,2]
[346903180,1735353051252,-9009.32781977,0.0002,2]
[346903181,1735353051262,-3449.44182864,0.0002,30]
[346903182,1735353051271,-1728.39667534,0.0002,30]
[346903183,1735353051284,-1773.0117062,0.0002,30]
[346903184,1735353051294,-5369.5948847,0.0002,2]
[346903185,1735353051304,-3051.1567958,0.0002,2]
[346903186,1735353051314,-151.0,0.0002,2]
[346903187,1735353051324,-151.0,0.0002,2]
[346903188,1735353051334,-154.000554,0.0002,2]
[346903189,1735353051343,-151.0,0.0002,2]
[346903190,1735353051353,-151.0,0.0002,2]
[346903191,1735353051363,-3631.09424706,0.00020027,2]
[346903192,1735353051372,-160.36464051,0.00020066,2]
[346903193,1735353051382,-5000.0,0.00020067,7]
[346903194,1735353051392,-26361.61656747,0.000201,6]
[346903195,1735353051402,-3524.94171997,0.000201,2]
[346903196,1735353051412,-151.0,0.000201,2]
[346903197,1735353051422,-151.0,0.000201,2]
[346903198,1735353051432,-151.0,0.000201,2]
[346903199,1735353051442,-500.0,0.00020109,2]
[346903200,1735353051452,-151.0,0.00020116,2]
[346903201,1735353051530,-330.43672364,0.00020126,2]
[346903202,1735353051541,-228.90068375,0.00020137,2]
[346903203,1735353051551,-500.0,0.00020137,2]
[346903204,1735353051560,-150.21,0.00020137,2]
[346903205,1735353051570,-2132.83953196,0.00020173,2]
[346903206,1735353051579,-3631.09424706,0.00020182,2]
[346903207,1735353051599,-859.89,0.000202,2]
[346903208,1735353051611,-151.0,0.00020232,2]
[346903209,1735353051621,-195.0,0.00020245,2]
[346903210,1735353051631,-195.47,0.00020245,2]
[346903211,1735353051641,-150.0,0.00020261,2]
[346903212,1735353051654,-394.0,0.00020261,2]
[346903213,1735353051664,-53915.1084917,0.00020263,2]
[346903214,1735353051675,-151.0,0.00020263,2]
[346903215,1735353051685,-151.0,0.00020263,2]
[346903216,1735353051698,-152.434414,0.00020263,2]
[346903217,1735353051708,-499.0,0.00020273,2]
[346903218,1735353051718,-1200.0,0.00020291,2]
[346903219,1735353051728,-2000.0,0.000203,2]
[346903220,1735353051738,-7286.87,0.000203,2]
[346903221,1735353051748,-19379.08,0.000203,2]
[346903222,1735353051759,-20904.79,0.000203,2]
[346903223,1735353051769,-5866.85477501,0.000203,2]
[346903224,1735353051780,-177.524098,0.000203,2]
[346903225,1735353051789,-3631.09424706,0.00020336,2]
[346903226,1735353051799,-160.0,0.00020381,3]
[346903227,1735353051809,-160.72528544,0.00020381,5]
[346903228,1735353051819,-500.0,0.00020383,2]
[346903229,1735353051829,-500.0,0.00020411,2]
[346903230,1735353051839,-280.42921856,0.00020411,2]
[346903231,1735353051849,-400.0,0.00020447,2]
[346903232,1735353051860,-151.0,0.0002045,2]
[346903233,1735353051870,-151.0,0.0002045,2]
[346903234,1735353051880,-171.083883,0.0002045,2]
[346903235,1735353051890,-3631.09424706,0.00020491,2]
[346903236,1735353051900,-163.09194401,0.00020491,2]
[346903237,1735353051910,-201294.00407578,0.000205,10]
[346903238,1735353051919,-152.65,0.000205,31]
[346903239,1735353051929,-152.65,0.000205,31]
[346903240,1735353051939,-152.65,0.000205,31]
[346903241,1735353051948,-152.65,0.000205,31]
[346903242,1735353051957,-152.65,0.000205,31]
[346903243,1735353051967,-152.65,0.000205,31]
[346903244,1735353051977,-152.65,0.000205,31]
[346903245,1735353051987,-152.65,0.000205,31]
[346903246,1735353051997,-152.65,0.000205,31]
[346903247,1735353052006,-152.65,0.000205,31]
[346903248,1735353052016,-152.65,0.000205,31]
[346903249,1735353052026,-152.65,0.000205,31]
[346903250,1735353052041,-152.65,0.000205,31]
[346903251,1735353052051,-152.65,0.000205,31]
[346903252,1735353052061,-7698.48,0.00020514,30]
[346903253,1735353052070,-1138.752308,0.00020521,2]
[346903254,1735353052082,-500.0,0.00020524,2]
[346903255,1735353052092,-500.57354785,0.00020524,2]
[346903256,1735353052102,-500.0,0.00020547,8]
[346903257,1735353052113,-1804521.14948543,0.00020591,10]
[346903258,1735353052122,-1437556.11852392,0.00020591,10]
[346903259,1735353052209,-187346.67613127,0.00020591,10]
[346903260,1735353064520,-500.0,9.339e-05,2]
[346903261,1735353064530,-1365.34059203,0.00020591,10]
[346903262,1735353064600,-493.28256153,9.068e-05,2]
[346903263,1735353064613,-10.74891229,9.068e-05,2]
[346903264,1735353064622,-500.0,9.342e-05,2]
[346903265,1735353064632,-500.0,9.613e-05,2]
[346903266,1735353064641,-500.0,9.616e-05,2]
[346903267,1735353064650,-500.0,9.887e-05,2]
[346903268,1735353064659,-500.0,0.00010161,2]
[346903269,1735353064669,-497.53851799,0.00010435,2]
[346903270,1735353064679,-572.72984526,0.00020591,10]
[346903271,1735353064691,-304.23979383,0.00020591,10]
[346903272,1735353064834,-24.16031776,9.068e-05,2]
[346903273,1735353065048,-500.0,9.066e-05,2]
[346903274,1735353065058,-475.83968224,9.068e-05,2]
[346903275,1735353065068,-500.0,9.34e-05,2]
[346903276,1735353065078,-23.84287456,9.89e-05,2]
[346903277,1735353066398,-184.04611366,9.89e-05,2]
[346903278,1735353066432,500.0,8.975e-05,2]
[346903279,1735353066582,455.20294911,8.885e-05,2]
[346903280,1735353077311,349.30111779,8.975e-05,2]
[346903282,1735353136369,704.71233335,8.973e-05,2]
[346903283,1735353144182,704.71233335,8.973e-05,2]
[346903284,1735353152727,1704.71233335,8.973e-05,2]
[346903285,1735353160677,423.24492271,8.973e-05,2]
[346903286,1735353169351,5709.04544083,8.973e-05,2]
[346903287,1735353184380,3689.36782828,8.973e-05,2]
[346903289,1735353270211,5275.8520631,8.964e-05,2]
[346903290,1735353282780,24900.0,8.158e-05,2]
[346903291,1735353292695,1150.05337078,8.964e-05,2]
[346903292,1735353480626,185.4304241,8.219e-05,2]
[346903293,1735353536810,1140.9280609,8.067e-05,2]
[346903295,1735353608212,4557.5451342,8.219e-05,2]
[346903296,1735353748723,225.29402047,8.962e-05,2]
[346903298,1735353931145,-389.25745385,9.061e-05,2]
[346903299,1735353953108,-110.74254615,9.061e-05,2]
[346903300,1735353953130,-500.0,9.061e-05,2]
[346903301,1735353953151,-211.5428535,9.061e-05,2]
[346903303,1735354031090,-300.0,9.06e-05,2]
[346903304,1735354031112,-125.00882938,9.061e-05,2]
[346903305,1735354050115,-163.44831712,9.061e-05,2]
[346903306,1735354050138,-500.0,9.061e-05,2]
[346903307,1735354050162,-267.76504273,9.061e-05,2]
[346903308,1735354050188,-500.0,9.061e-05,2]
[346903309,1735354050212,-500.0,9.061e-05,2]
[346903310,1735354050237,-500.0,9.061e-05,2]
[346903311,1735354050265,-500.0,9.061e-05,2]
[346903312,1735354050288,-500.0,9.061e-05,2]
[346903313,1735354050310,-500.0,9.061e-05,2]
[346903314,1735354050333,-500.0,9.061e-05,2]
[346903315,1735354050357,-500.0,9.061e-05,2]
[346903316,1735354050385,-896.86,9.061e-05,2]
[346903317,1735354050409,-171.73816167,9.061e-05,2]
[346903318,1735354050433,-262.37644393,9.061e-05,2]
[346903319,1735354050457,-500.0,9.061e-05,2]
[346903320,1735354050481,-501.11188221,9.061e-05,2]
[346903321,1735354050505,-500.0,9.062e-05,2]
[346903322,1735354050529,-500.0,9.062e-05,2]
[346903323,1735354050551,-300.59967805,9.062e-05,2]
[346903324,1735354050576,-500.0,9.062e-05,2]
[346903325,1735354050600,-500.0,9.062e-05,2]
[346903326,1735354050625,-500.0,9.062e-05,2]
[346903327,1735354050649,-500.0,9.062e-05,2]
[346903328,1735354050673,-500.0,9.062e-05,2]
[346903329,1735354050697,-500.0,9.062e-05,2]
[346903330,1735354050721,-500.0,9.062e-05,2]
[346903331,1735354050745,-500.0,9.062e-05,2]
[346903332,1735354050770,-500.0,9.062e-05,2]
[346903333,1735354050792,-160.16975039,9.062e-05,2]
[346903334,1735354050815,-500.0,9.062e-05,2]
[346903335,1735354050840,-9.51673291,9.062e-05,2]
[346903336,1735354052112,-490.48326709,9.062e-05,2]
[346903337,1735354052137,-500.0,9.062e-05,2]
[346903338,1735354052160,-500.0,9.062e-05,2]
[346903339,1735354052185,-200.1292263,9.062e-05,2]
[346903340,1735354059137,8929.1269304,8.131e-05,2]
[346903342,1735354159390,-300.0,9.06e-05,2]
[346903343,1735354159416,-499.95930663,9.061e-05,2]
[346903344,1735354159441,-500.0,9.061e-05,2]
[346903345,1735354159467,-69.76309489,9.061e-05,2]
[346903346,1735354159499,-430.23690511,9.061e-05,2]
[346903347,1735354159526,-500.79952094,9.061e-05,2]
[346903348,1735354159551,-438.68597547,9.061e-05,2]
[346903349,1735354159682,-62.87719498,9.061e-05,2]
[346903350,1735354159710,-419.63580589,9.061e-05,2]
[346903351,1735354164134,-80.36419411,9.061e-05,2]
[346903352,1735354164157,-500.0,9.061e-05,2]
[346903353,1735354164181,-500.0,9.061e-05,2]
[346903354,1735354164201,-500.0,9.061e-05,2]
[346903355,1735354164222,-326.19673019,9.061e-05,2]
[346903356,1735354164243,-500.0,9.061e-05,2]
[346903357,1735354164266,-37.61558066,9.061e-05,2]
[346903358,1735354165096,-163.69443635,9.061e-05,2]
[346903359,1735354165118,-143.18062125,9.061e-05,2]
[346903360,1735354167126,-356.81937875,9.061e-05,2]
[346903361,1735354167146,-500.0,9.061e-05,2]
[346903362,1735354167165,-500.0,9.061e-05,2]
[346903363,1735354167185,-500.0,9.061e-05,2]
[346903364,1735354167204,-500.0,9.061e-05,2]
[346903365,1735354167224,-501.44148275,9.061e-05,2]
[346903366,1735354167243,-500.0,9.061e-05,2]
[346903367,1735354167263,-500.0,9.061e-05,2]
[346903368,1735354167283,-500.0,9.061e-05,2]
[346903369,1735354167302,-501.48090557,9.061e-05,2]
[346903370,1735354167323,-630.03,9.061e-05,2]
[346903371,1735354167346,-501.41071916,9.061e-05,2]
[346903372,1735354167369,-500.0,9.061e-05,2]
[346903373,1735354167390,-500.0,9.061e-05,2]
[346903374,1735354167412,-490.53639601,9.061e-05,2]
[346903375,1735354170096,-16.26249874,9.061e-05,2]
[346903376,1735354170116,-506.48694792,9.061e-05,2]
[346903377,1735354170138,-500.0,9.061e-05,2]
[346903378,1735354170158,-513.8661704,9.061e-05,2]
[346903379,1735354170177,-125.55475027,9.061e-05,2]
[346903380,1735354174139,-376.11274663,9.061e-05,2]
[346903381,1735354174162,-500.0,9.061e-05,2]
[346903382,1735354174183,-502.13145983,9.061e-05,2]
[346903383,1735354174205,-530.61352937,9.061e-05,2]
[346903384,1735354174226,-500.0,9.061e-05,2]
[346903385,1735354174248,-500.0,9.061e-05,2]
[346903386,1735354174270,-501.68121836,9.061e-05,2]
[346903387,1735354174291,-501.12597835,9.061e-05,2]
[346903388,1735354174313,-500.0,9.061e-05,2]
[346903389,1735354174335,-500.94557307,9.061e-05,2]
[346903390,1735354174356,-500.0,9.061e-05,2]
[346903391,1735354174377,-500.0,9.061e-05,2]
[346903392,1735354174399,-500.0,9.061e-05,2]
[346903393,1735354174421,-502.58924654,9.061e-05,2]
[346903394,1735354174442,-1308.44536904,9.061e-05,2]
[346903395,1735354174462,-501.43920977,9.061e-05,2]
[346903396,1735354174484,-500.0,9.061e-05,2]
[346903397,1735354174505,-500.0,9.061e-05,2]
[346903398,1735354174526,-500.0,9.061e-05,2]
[346903399,1735354174547,-500.0,9.061e-05,2]
[346903400,1735354174568,-501.07786727,9.061e-05,2]
[346903401,1735354174591,-504.81629914,9.061e-05,2]
[346903402,1735354174612,-500.0,9.061e-05,2]
[346903403,1735354174635,-500.92399251,9.061e-05,2]
[346903404,1735354174656,-501.42249088,9.061e-05,2]
[346903405,1735354174679,-500.0,9.061e-05,2]
[346903406,1735354174702,-626.65,9.061e-05,2]
[346903407,1735354174722,-500.0,9.061e-05,2]
[346903408,1735354174743,-500.0,9.061e-05,2]
[346903409,1735354174764,-500.0,9.061e-05,2]
[346903410,1735354174785,-500.0,9.061e-05,2]
[346903411,1735354174806,-500.0,9.061e-05,2]
[346903412,1735354174827,-500.0,9.061e-05,2]
[346903413,1735354174848,-500.0,9.061e-05,2]
[346903414,1735354174869,-500.0,9.061e-05,2]
[346903415,1735354174891,-500.0,9.061e-05,2]
[346903416,1735354174911,-500.0,9.061e-05,2]
[346903417,1735354174934,-500.0,9.061e-05,2]
[346903418,1735354174956,-500.0,9.061e-05,2]
[346903419,1735354174976,-500.0,9.061e-05,2]
[346903420,1735354174997,-500.0,9.061e-05,2]
[346903421,1735354175019,-500.0,9.061e-05,2]
[346903422,1735354175044,-500.0,9.061e-05,2]
[346903423,1735354175067,-500.0,9.062e-05,2]
[346903424,1735354175089,-621.1404824,9.062e-05,2]
[346903425,1735354175111,-299.8707737,9.062e-05,2]
[346903426,1735354175134,-500.0,9.062e-05,2]
[346903427,1735354175156,-500.0,9.062e-05,2]
[346903428,1735354175178,-500.0,9.062e-05,2]
[346903429,1735354175202,-452.76001465,9.062e-05,2]
[346903430,1735354175223,-500.0,9.062e-05,2]
[346903431,1735354175245,-450.0,9.062e-05,2]
[346903432,1735354175267,-500.0,9.062e-05,2]
[346903433,1735354175288,-451.88995377,9.062e-05,2]
[346903434,1735354175310,-500.0,9.062e-05,2]
[346903435,1735354175331,-500.0,9.062e-05,2]
[346903436,1735354175353,-372.67654493,9.062e-05,2]
[346903437,1735354175378,-500.0,9.062e-05,2]
[346903438,1735354175401,-500.0,9.062e-05,2]
[346903439,1735354175426,-500.0,9.062e-05,2]
[346903440,1735354175452,-500.0,9.062e-05,2]
[346903441,1735354175475,-500.0,9.062e-05,2]
[346903442,1735354175497,-500.0,9.062e-05,2]
[346903443,1735354175521,-500.0,9.062e-05,2]
[346903444,1735354175544,-500.0,9.062e-05,2]
[346903445,1735354175567,-500.0,9.062e-05,2]
[346903446,1735354175594,-500.0,9.062e-05,2]
[346903447,1735354175617,-500.0,9.062e-05,2]
[346903448,1735354175640,-500.0,9.062e-05,2]
[346903449,1735354175663,-500.0,9.062e-05,2]
[346903450,1735354175686,-500.0,9.062e-05,2]
[346903451,1735354175710,-500.0,9.062e-05,2]
[346903452,1735354175733,-500.0,9.062e-05,2]
[346903453,1735354175757,-500.0,9.062e-05,2]
[346903454,1735354175780,-500.0,9.062e-05,2]
[346903455,1735354175804,-500.0,9.062e-05,2]
[346903456,1735354175827,-500.0,9.062e-05,2]
[346903457,1735354175851,-500.0,9.062e-05,2]
[346903458,1735354175875,-500.0,9.062e-05,2]
[346903459,1735354175898,-500.0,9.062e-05,2]
[346903460,1735354175921,-500.0,9.062e-05,2]